[Event "*** Titled Tuesday Blitz"]
[Site "Chess.com"]
[Date "2020.10.27"]
[Round "4"]
[White "GOGIEFF"]
[Black "Alexsur1981"]
[Result "1/2-1/2"]
[WhiteElo "2881"]
[BlackElo "2765"]
[TimeControl "180+1"]
[EndTime "10:38:43 PDT"]
[Termination "Game drawn by agreement"]

1. d4 {[%clk 0:03:00.9]} 1... d5 {[%clk 0:03:00.1]} 2. c4 {[%clk 0:03:00.9]}
2... e6 {[%clk 0:03:00.4]} 3. Nc3 {[%clk 0:03:00.6]} 3... c6 {[%clk 0:03:00.8]}
4. e3 {[%clk 0:03:00.8]} 4... f5 {[%clk 0:02:59.4]} 5. g4 {[%clk 0:02:59.4]}
5... Nf6 {[%clk 0:02:58.7]} 6. gxf5 {[%clk 0:02:59.5]} 6... exf5 {[%clk
0:02:59.3]} 7. Qb3 {[%clk 0:02:58.7]} 7... Na6 {[%clk 0:02:56.2]} 8. Nh3 {[%clk
0:02:47.9]} 8... Nc7 {[%clk 0:02:54.4]} 9. Rg1 {[%clk 0:02:43.1]} 9... g6 {[%clk
0:02:48.9]} 10. Nf4 {[%clk 0:02:34.7]} 10... Bd6 {[%clk 0:02:41.2]} 11. cxd5
{[%clk 0:02:15.4]} 11... Bxf4 {[%clk 0:02:31.4]} 12. dxc6 {[%clk 0:02:15.6]}
12... Bxh2 {[%clk 0:02:29.8]} 13. Rh1 {[%clk 0:02:16]} 13... Be6 {[%clk
0:02:22.5]} 14. d5 {[%clk 0:02:07.7]} 14... Nfxd5 {[%clk 0:02:09.4]} 15. cxb7
{[%clk 0:02:00.3]} 15... Rb8 {[%clk 0:02:06.4]} 16. Rxh2 {[%clk 0:01:45.5]}
16... Nb6 {[%clk 0:01:50.6]} 17. Qa3 {[%clk 0:01:34.2]} 17... Rxb7 {[%clk
0:01:48.1]} 18. e4 {[%clk 0:01:29.4]} 18... Qe7 {[%clk 0:01:25.9]} 19. Qxe7+
{[%clk 0:01:23.7]} 19... Kxe7 {[%clk 0:01:26.8]} 20. Bg5+ {[%clk 0:01:23.9]}
20... Kf7 {[%clk 0:01:27]} 21. O-O-O {[%clk 0:01:24.8]} 21... h5 {[%clk
0:01:21.2]} 22. f3 {[%clk 0:01:04.8]} 22... Rc8 {[%clk 0:01:13.3]} 23. Rhd2
{[%clk 0:01:04.8]} 23... fxe4 {[%clk 0:01:01.2]} 24. Nxe4 {[%clk 0:00:59.2]}
24... Ne8+ {[%clk 0:00:55.8]} 25. Kb1 {[%clk 0:00:59.2]} 25... Nc4 {[%clk
0:00:47.7]} 26. Bxc4 {[%clk 0:00:58.7]} 26... Rxc4 {[%clk 0:00:48.6]} 27. b3
{[%clk 0:00:58.2]} 27... Bf5 {[%clk 0:00:45.2]} 28. Kb2 {[%clk 0:00:57.2]} 28...
Rc6 {[%clk 0:00:42.4]} 29. Rd5 {[%clk 0:00:53.7]} 29... Re6 {[%clk 0:00:37]} 30.
R1d4 {[%clk 0:00:50.6]} 30... Bxe4 {[%clk 0:00:30.2]} 31. Rd7+ {[%clk
0:00:50.3]} 31... Rxd7 {[%clk 0:00:29.8]} 32. Rxd7+ {[%clk 0:00:51.2]} 32... Kf8
{[%clk 0:00:29.5]} 33. fxe4 {[%clk 0:00:51.3]} 33... Rxe4 {[%clk 0:00:28.3]} 34.
Rxa7 {[%clk 0:00:51.2]} 34... Re5 {[%clk 0:00:27.2]} 35. Bh6+ {[%clk 0:00:45.3]}
35... Kg8 {[%clk 0:00:27.1]} 36. a4 {[%clk 0:00:45.2]} 36... h4 {[%clk
0:00:25.2]} 37. a5 {[%clk 0:00:44.4]} 37... g5 {[%clk 0:00:24.8]} 38. a6 {[%clk
0:00:37.5]} 38... h3 {[%clk 0:00:24.7]} 39. Rd7 {[%clk 0:00:34.6]} 39... h2
{[%clk 0:00:24.4]} 40. Rd1 {[%clk 0:00:34.7]} 40... Kh7 {[%clk 0:00:20.7]} 41.
a7 {[%clk 0:00:30.4]} 41... Nc7 {[%clk 0:00:19]} 42. Bf8 {[%clk 0:00:30.6]}
42... Ra5 {[%clk 0:00:16.2]} 43. Bd6 {[%clk 0:00:25.6]} 43... Rxa7 {[%clk
0:00:16.3]} 44. Bxh2 {[%clk 0:00:25]} 44... Ne6 {[%clk 0:00:16.9]} 45. b4 {[%clk
0:00:22.9]} 1/2-1/2

[Event "*** Titled Tuesday Blitz"]
[Site "Chess.com"]
[Date "2020.10.27"]
[Round "4"]
[White "TheChessChannel"]
[Black "MarceloPlaya"]
[Result "0-1"]
[WhiteElo "2439"]
[BlackElo "2286"]
[TimeControl "180+1"]
[EndTime "10:38:43 PDT"]
[Termination "MarceloPlaya won by resignation"]

1. c4 {[%clk 0:03:00.9]} 1... e6 {[%clk 0:02:24.8]} 2. g3 {[%clk 0:02:56.2]}
2... Nf6 {[%clk 0:02:16.5]} 3. Bg2 {[%clk 0:02:56]} 3... d5 {[%clk 0:02:15.2]}
4. cxd5 {[%clk 0:02:56.9]} 4... exd5 {[%clk 0:02:14.7]} 5. Nf3 {[%clk
0:02:57.8]} 5... Bd6 {[%clk 0:02:08.2]} 6. O-O {[%clk 0:02:58]} 6... O-O {[%clk
0:02:07.9]} 7. d3 {[%clk 0:02:57.5]} 7... Re8 {[%clk 0:02:06]} 8. Nc3 {[%clk
0:02:57.6]} 8... c6 {[%clk 0:02:05.4]} 9. Bd2 {[%clk 0:02:57.7]} 9... Bg4 {[%clk
0:02:02.9]} 10. h3 {[%clk 0:02:57]} 10... Bh5 {[%clk 0:02:02.2]} 11. a3 {[%clk
0:02:57.2]} 11... Nbd7 {[%clk 0:01:58.9]} 12. b4 {[%clk 0:02:55.3]} 12... Ne5
{[%clk 0:01:58.2]} 13. Nxe5 {[%clk 0:02:48.3]} 13... Bxe5 {[%clk 0:01:57.3]} 14.
Re1 {[%clk 0:02:48.9]} 14... Qd7 {[%clk 0:01:49.7]} 15. Rc1 {[%clk 0:02:47]}
15... Rad8 {[%clk 0:01:48]} 16. a4 {[%clk 0:02:47]} 16... Bb8 {[%clk 0:01:43.5]}
17. b5 {[%clk 0:02:46.6]} 17... c5 {[%clk 0:01:41.1]} 18. Bg5 {[%clk 0:02:41.2]}
18... Qe6 {[%clk 0:01:23.4]} 19. Bxf6 {[%clk 0:02:36.8]} 19... gxf6 {[%clk
0:01:22.5]} 20. g4 {[%clk 0:02:24]} 20... Bg6 {[%clk 0:01:21.1]} 21. Nxd5 {[%clk
0:02:19.6]} 21... Rxd5 {[%clk 0:01:19.8]} 22. Bxd5 {[%clk 0:02:14]} 22... Qxd5
{[%clk 0:01:19.3]} 23. Qd2 {[%clk 0:02:03.3]} 23... Qd6 {[%clk 0:01:11.4]} 24.
f4 {[%clk 0:01:59]} 24... Qxf4 {[%clk 0:01:09.3]} 25. Qxf4 {[%clk 0:01:58.7]}
25... Bxf4 {[%clk 0:01:09]} 26. Rc4 {[%clk 0:01:34.1]} 26... Be3+ {[%clk
0:01:08.5]} 27. Kg2 {[%clk 0:01:33.3]} 27... f5 {[%clk 0:01:04.4]} 28. Rf1
{[%clk 0:01:28.2]} 28... fxg4 {[%clk 0:01:03.6]} 29. hxg4 {[%clk 0:01:29.1]}
29... Kg7 {[%clk 0:00:59]} 30. Rf3 {[%clk 0:01:21.5]} 30... f6 {[%clk
0:00:55.8]} 31. a5 {[%clk 0:00:59.6]} 31... Bf7 {[%clk 0:00:50.1]} 32. Re4
{[%clk 0:00:56.7]} 32... Rxe4 {[%clk 0:00:48.8]} 33. dxe4 {[%clk 0:00:57.6]}
33... Bd4 {[%clk 0:00:47.8]} 34. Rd3 {[%clk 0:00:53.4]} 34... Be6 {[%clk
0:00:44.4]} 35. e3 {[%clk 0:00:51.7]} 35... Be5 {[%clk 0:00:43.9]} 36. Kf3
{[%clk 0:00:48.8]} 36... c4 {[%clk 0:00:42.8]} 37. Rd1 {[%clk 0:00:47.3]} 37...
c3 {[%clk 0:00:42.3]} 38. Rc1 {[%clk 0:00:41.8]} 38... Bb3 {[%clk 0:00:41.2]}
39. Ke2 {[%clk 0:00:42.1]} 39... c2 {[%clk 0:00:40.1]} 40. Kd2 {[%clk
0:00:33.5]} 40... Bb2 {[%clk 0:00:38.7]} 41. Rxc2 {[%clk 0:00:23.8]} 41... Bxc2
{[%clk 0:00:37.6]} 42. Kxc2 {[%clk 0:00:24.7]} 42... Be5 {[%clk 0:00:37]} 43.
Kd3 {[%clk 0:00:23.5]} 43... Bc7 {[%clk 0:00:36]} 44. a6 {[%clk 0:00:22.6]}
44... bxa6 {[%clk 0:00:35.1]} 45. bxa6 {[%clk 0:00:23.5]} 45... Kg6 {[%clk
0:00:33.7]} 46. Ke2 {[%clk 0:00:24.4]} 46... Kg5 {[%clk 0:00:32.9]} 47. Kf3
{[%clk 0:00:25.3]} 47... Bb6 {[%clk 0:00:32.6]} 48. Kg3 {[%clk 0:00:21.9]} 48...
Bxe3 {[%clk 0:00:31.8]} 49. Kf3 {[%clk 0:00:22.3]} 49... Bf4 {[%clk 0:00:31.2]}
0-1

[Event "*** Titled Tuesday Blitz"]
[Site "Chess.com"]
[Date "2020.10.27"]
[Round "4"]
[White "Arseniy_Nesterov"]
[Black "scarabee43"]
[Result "1-0"]
[WhiteElo "2798"]
[BlackElo "2535"]
[TimeControl "180+1"]
[EndTime "10:38:45 PDT"]
[Termination "Arseniy_Nesterov won by checkmate"]

1. d4 {[%clk 0:03:00.9]} 1... Nf6 {[%clk 0:02:59.7]} 2. c4 {[%clk 0:03:01.3]}
2... c5 {[%clk 0:02:59.1]} 3. d5 {[%clk 0:03:00.9]} 3... g6 {[%clk 0:02:59.3]}
4. Nc3 {[%clk 0:03:01]} 4... Bg7 {[%clk 0:02:59.6]} 5. e4 {[%clk 0:03:01.4]}
5... d6 {[%clk 0:02:59.4]} 6. Be2 {[%clk 0:03:01.3]} 6... O-O {[%clk 0:02:59.4]}
7. Bg5 {[%clk 0:02:58.5]} 7... e6 {[%clk 0:02:56.2]} 8. Qd2 {[%clk 0:02:58]}
8... Re8 {[%clk 0:02:52.5]} 9. Nf3 {[%clk 0:02:57.4]} 9... exd5 {[%clk
0:02:50.8]} 10. exd5 {[%clk 0:02:57.6]} 10... Nbd7 {[%clk 0:02:48.2]} 11. O-O
{[%clk 0:02:57.1]} 11... Ne5 {[%clk 0:02:36.8]} 12. Nxe5 {[%clk 0:02:56.5]}
12... Rxe5 {[%clk 0:02:37.2]} 13. Bd3 {[%clk 0:02:55.1]} 13... Bd7 {[%clk
0:02:27.5]} 14. f4 {[%clk 0:02:54.9]} 14... Re8 {[%clk 0:02:27.4]} 15. f5 {[%clk
0:02:54.7]} 15... Re5 {[%clk 0:02:05.4]} 16. fxg6 {[%clk 0:02:36.7]} 16... hxg6
{[%clk 0:01:54.9]} 17. Bf4 {[%clk 0:02:35.8]} 17... Ng4 {[%clk 0:01:45.4]} 18.
h3 {[%clk 0:02:31.6]} 18... Ne3 {[%clk 0:01:39.8]} 19. Rf3 {[%clk 0:02:08.7]}
19... Nf5 {[%clk 0:01:34.3]} 20. Bxe5 {[%clk 0:02:08.5]} 20... Bxe5 {[%clk
0:01:34.7]} 21. Bxf5 {[%clk 0:02:05.8]} 21... Bxf5 {[%clk 0:01:35.1]} 22. Raf1
{[%clk 0:01:58.1]} 22... Qh4 {[%clk 0:01:27.2]} 23. g4 {[%clk 0:01:32.9]} 23...
Bd7 {[%clk 0:01:19]} 24. Ne4 {[%clk 0:01:21]} 24... f5 {[%clk 0:01:12.7]} 25.
Qg5 {[%clk 0:01:08.2]} 25... Qxg5 {[%clk 0:00:48]} 26. Nxg5 {[%clk 0:01:08.2]}
26... fxg4 {[%clk 0:00:48.6]} 27. Rf7 {[%clk 0:01:07.6]} 27... Bf5 {[%clk
0:00:46.7]} 28. hxg4 {[%clk 0:01:05.4]} 28... Bxg4 {[%clk 0:00:47.1]} 29. Rxb7
{[%clk 0:01:02]} 29... Bf5 {[%clk 0:00:43.9]} 30. Nf7 {[%clk 0:00:56.1]} 30...
Bd4+ {[%clk 0:00:42]} 31. Kh2 {[%clk 0:00:55.6]} 31... Rf8 {[%clk 0:00:36.4]}
32. Nh6+ {[%clk 0:00:53.3]} 32... Kh8 {[%clk 0:00:36.7]} 33. Nxf5 {[%clk
0:00:53.5]} 33... gxf5 {[%clk 0:00:36.5]} 34. Rxa7 {[%clk 0:00:45.6]} 34... Bxb2
{[%clk 0:00:36.1]} 35. Rd7 {[%clk 0:00:42.1]} 35... Be5+ {[%clk 0:00:27.1]} 36.
Kg2 {[%clk 0:00:41.9]} 36... f4 {[%clk 0:00:27.5]} 37. Kf3 {[%clk 0:00:40.7]}
37... Ra8 {[%clk 0:00:25.6]} 38. Rf2 {[%clk 0:00:34.8]} 38... Ra3+ {[%clk
0:00:25.2]} 39. Ke4 {[%clk 0:00:34.1]} 39... Ra4 {[%clk 0:00:20.5]} 40. Kf5
{[%clk 0:00:33.1]} 40... Kg8 {[%clk 0:00:18.9]} 41. Rg2+ {[%clk 0:00:26.6]}
41... Kf8 {[%clk 0:00:18.9]} 42. Ke6 {[%clk 0:00:27]} 42... f3 {[%clk
0:00:03.3]} 43. Rd8# {[%clk 0:00:26.5]} 1-0

[Event "*** Titled Tuesday Blitz"]
[Site "Chess.com"]
[Date "2020.10.27"]
[Round "4"]
[White "Fh2411"]
[Black "bascheyaro"]
[Result "0-1"]
[WhiteElo "2516"]
[BlackElo "2732"]
[TimeControl "180+1"]
[EndTime "10:38:46 PDT"]
[Termination "bascheyaro won on time"]

1. d4 {[%clk 0:02:56]} 1... Nf6 {[%clk 0:02:58.8]} 2. Nf3 {[%clk 0:02:55.8]}
2... d5 {[%clk 0:02:59.1]} 3. Bf4 {[%clk 0:02:55]} 3... Bf5 {[%clk 0:02:57.9]}
4. c4 {[%clk 0:02:53.9]} 4... c6 {[%clk 0:02:57.6]} 5. e3 {[%clk 0:02:50.1]}
5... Qb6 {[%clk 0:02:57]} 6. Qb3 {[%clk 0:02:49.5]} 6... e6 {[%clk 0:02:51.8]}
7. Nc3 {[%clk 0:02:49.5]} 7... dxc4 {[%clk 0:02:49.8]} 8. Bxc4 {[%clk
0:02:48.7]} 8... Nbd7 {[%clk 0:02:50.1]} 9. O-O {[%clk 0:02:45.2]} 9... h6
{[%clk 0:02:49.2]} 10. h3 {[%clk 0:02:40.7]} 10... Ne4 {[%clk 0:02:44.6]} 11.
Rfd1 {[%clk 0:02:27.8]} 11... Nxc3 {[%clk 0:02:41.9]} 12. bxc3 {[%clk
0:02:27.2]} 12... Qxb3 {[%clk 0:02:42]} 13. axb3 {[%clk 0:02:20.1]} 13... g5
{[%clk 0:02:41.3]} 14. Bg3 {[%clk 0:02:18.1]} 14... Nb6 {[%clk 0:02:41.3]} 15.
Bd3 {[%clk 0:02:15.1]} 15... Bxd3 {[%clk 0:02:35.5]} 16. Rxd3 {[%clk 0:02:16]}
16... Bg7 {[%clk 0:02:33.3]} 17. Ra5 {[%clk 0:02:07.4]} 17... O-O {[%clk
0:02:29.7]} 18. c4 {[%clk 0:02:02.7]} 18... Nd7 {[%clk 0:02:27.4]} 19. Rd2
{[%clk 0:01:58.2]} 19... c5 {[%clk 0:02:17.4]} 20. Rda2 {[%clk 0:01:39.3]} 20...
cxd4 {[%clk 0:02:16.9]} 21. exd4 {[%clk 0:01:33.6]} 21... a6 {[%clk 0:02:17]}
22. Ne5 {[%clk 0:00:33.5]} 22... Rfd8 {[%clk 0:02:13.7]} 23. Nf3 {[%clk
0:00:26.2]} 23... Rac8 {[%clk 0:02:12.7]} 24. R2a4 {[%clk 0:00:22.5]} 24... Nf8
{[%clk 0:01:59.2]} 25. Be5 {[%clk 0:00:21.4]} 25... f6 {[%clk 0:01:56.9]} 26.
Bg3 {[%clk 0:00:20.2]} 26... Rd7 {[%clk 0:01:57.1]} 27. Rb4 {[%clk 0:00:19.9]}
27... Rc6 {[%clk 0:01:53.4]} 28. Kh2 {[%clk 0:00:13.9]} 28... Ng6 {[%clk
0:01:53.1]} 29. d5 {[%clk 0:00:13.7]} 29... exd5 {[%clk 0:01:49.1]} 30. Rxd5
{[%clk 0:00:14.6]} 30... Re7 {[%clk 0:01:25]} 31. Rd8+ {[%clk 0:00:14.2]} 31...
Kf7 {[%clk 0:01:23.4]} 32. Rb8 {[%clk 0:00:14.5]} 32... f5 {[%clk 0:01:23.8]}
33. R8xb7 {[%clk 0:00:06.2]} 33... f4 {[%clk 0:01:23.8]} 34. Rxe7+ {[%clk
0:00:04.6]} 34... Nxe7 {[%clk 0:01:23.4]} 35. Rb7 {[%clk 0:00:05]} 35... fxg3+
{[%clk 0:01:23.3]} 36. fxg3 {[%clk 0:00:05.9]} 36... Rd6 {[%clk 0:01:19.4]} 37.
c5 {[%clk 0:00:05.1]} 37... Rd3 {[%clk 0:01:18.7]} 38. b4 {[%clk 0:00:05.2]}
38... Rb3 {[%clk 0:01:15.7]} 39. c6 {[%clk 0:00:05]} 39... Rc3 {[%clk
0:01:11.4]} 40. Nd2 {[%clk 0:00:03.8]} 40... Rxc6 {[%clk 0:01:10.3]} 41. Ne4
{[%clk 0:00:04.7]} 41... Be5 {[%clk 0:01:07]} 42. h4 {[%clk 0:00:04]} 42... gxh4
{[%clk 0:01:05.2]} 43. Kh3 {[%clk 0:00:04.7]} 43... hxg3 {[%clk 0:01:03.7]} 44.
Nc5 {[%clk 0:00:03.7]} 44... Bd6 {[%clk 0:00:39.4]} 45. Nd3 {[%clk 0:00:02.8]}
45... Ke6 {[%clk 0:00:36.8]} 0-1

[Event "*** Titled Tuesday Blitz"]
[Site "Chess.com"]
[Date "2020.10.27"]
[Round "4"]
[White "mjray79"]
[Black "GMJustin"]
[Result "0-1"]
[WhiteElo "2443"]
[BlackElo "2292"]
[TimeControl "180+1"]
[EndTime "10:38:46 PDT"]
[Termination "GMJustin won by checkmate"]

1. d4 {[%clk 0:03:00.9]} 1... d5 {[%clk 0:02:56.2]} 2. c4 {[%clk 0:03:00.7]}
2... e6 {[%clk 0:02:52.8]} 3. Nf3 {[%clk 0:03:00.4]} 3... Nf6 {[%clk 0:02:50.1]}
4. g3 {[%clk 0:03:00.3]} 4... Be7 {[%clk 0:02:38.5]} 5. Bg2 {[%clk 0:03:00.3]}
5... O-O {[%clk 0:02:38.4]} 6. O-O {[%clk 0:02:59.5]} 6... dxc4 {[%clk 0:02:36]}
7. Qc2 {[%clk 0:02:59]} 7... b6 {[%clk 0:02:14]} 8. Qxc4 {[%clk 0:02:53.1]} 8...
Bb7 {[%clk 0:01:59.8]} 9. Nc3 {[%clk 0:02:48.1]} 9... Nbd7 {[%clk 0:01:57.4]}
10. Bf4 {[%clk 0:02:46.2]} 10... c5 {[%clk 0:01:51.6]} 11. Rfd1 {[%clk
0:02:44.4]} 11... Qc8 {[%clk 0:01:35.8]} 12. Rac1 {[%clk 0:02:41.4]} 12... Nd5
{[%clk 0:01:19.1]} 13. Nxd5 {[%clk 0:02:27.2]} 13... Bxd5 {[%clk 0:01:17.9]} 14.
Qd3 {[%clk 0:02:19.2]} 14... Qb7 {[%clk 0:01:08.7]} 15. Re1 {[%clk 0:02:18.4]}
15... Be4 {[%clk 0:00:36.3]} 16. Qd2 {[%clk 0:02:14.7]} 16... Rac8 {[%clk
0:00:35.7]} 17. dxc5 {[%clk 0:02:03.9]} 17... Nxc5 {[%clk 0:00:34.9]} 18. Qe3
{[%clk 0:02:00.1]} 18... Bf6 {[%clk 0:00:23.8]} 19. b4 {[%clk 0:01:52.7]} 19...
Na4 {[%clk 0:00:20.3]} 20. Bg5 {[%clk 0:01:49.3]} 20... Bb2 {[%clk 0:00:13.3]}
21. Rxc8 {[%clk 0:01:37]} 21... Rxc8 {[%clk 0:00:12.6]} 22. Qf4 {[%clk
0:01:34.1]} 22... h6 {[%clk 0:00:10.3]} 23. Bxh6 {[%clk 0:01:27.1]} 23... gxh6
{[%clk 0:00:09.9]} 24. Qxh6 {[%clk 0:01:28]} 24... Bg7 {[%clk 0:00:09.8]} 25.
Qh4 {[%clk 0:01:26.7]} 25... Nc3 {[%clk 0:00:06.4]} 26. Qf4 {[%clk 0:01:11.3]}
26... Qd5 {[%clk 0:00:04.7]} 27. h4 {[%clk 0:01:10]} 27... e5 {[%clk 0:00:02.8]}
28. Qg4 {[%clk 0:01:09.1]} 28... f5 {[%clk 0:00:02.5]} 29. Qg6 {[%clk
0:01:07.3]} 29... Nxe2+ {[%clk 0:00:02.1]} 30. Rxe2 {[%clk 0:01:02.9]} 30...
Bxf3 {[%clk 0:00:02.5]} 31. Bxf3 {[%clk 0:00:50]} 31... Qxf3 {[%clk 0:00:02.6]}
32. Qe6+ {[%clk 0:00:49.7]} 32... Kh7 {[%clk 0:00:02.9]} 33. Re1 {[%clk
0:00:48.4]} 33... Rf8 {[%clk 0:00:02.1]} 34. Re3 {[%clk 0:00:46.2]} 34... Qd1+
{[%clk 0:00:01.6]} 35. Kg2 {[%clk 0:00:45.7]} 35... e4 {[%clk 0:00:02]} 36. b5
{[%clk 0:00:38.8]} 36... Qg4 {[%clk 0:00:02]} 37. Ra3 {[%clk 0:00:36]} 37... Qg6
{[%clk 0:00:02]} 38. Qd7 {[%clk 0:00:34.1]} 38... f4 {[%clk 0:00:02.4]} 39. Rxa7
{[%clk 0:00:32.4]} 39... f3+ {[%clk 0:00:02.8]} 40. Kh2 {[%clk 0:00:30.8]} 40...
e3 {[%clk 0:00:03.1]} 41. Kg1 {[%clk 0:00:23]} 41... exf2+ {[%clk 0:00:03]} 42.
Kxf2 {[%clk 0:00:23.9]} 42... Qc2+ {[%clk 0:00:02.8]} 43. Ke3 {[%clk 0:00:24.3]}
43... Qe2# {[%clk 0:00:02.7]} 0-1

[Event "*** Titled Tuesday Blitz"]
[Site "Chess.com"]
[Date "2020.10.27"]
[Round "4"]
[White "dropstoneDP"]
[Black "penguingm1"]
[Result "0-1"]
[WhiteElo "2958"]
[BlackElo "2825"]
[TimeControl "180+1"]
[EndTime "10:38:48 PDT"]
[Termination "penguingm1 won by resignation"]

1. e4 {[%clk 0:03:00.9]} 1... e5 {[%clk 0:02:59.5]} 2. f4 {[%clk 0:03:00.5]}
2... exf4 {[%clk 0:02:59.5]} 3. Bc4 {[%clk 0:02:58.9]} 3... Nf6 {[%clk
0:02:45.9]} 4. e5 {[%clk 0:02:49.3]} 4... d5 {[%clk 0:02:08]} 5. Bb5+ {[%clk
0:02:48.9]} 5... c6 {[%clk 0:01:56]} 6. exf6 {[%clk 0:02:47.6]} 6... cxb5 {[%clk
0:01:52.9]} 7. Qe2+ {[%clk 0:02:48]} 7... Be6 {[%clk 0:01:52.6]} 8. Qxb5+ {[%clk
0:02:47.8]} 8... Nd7 {[%clk 0:01:49.8]} 9. fxg7 {[%clk 0:02:39.3]} 9... Qh4+
{[%clk 0:01:26.9]} 10. Kf1 {[%clk 0:02:31.2]} 10... Bxg7 {[%clk 0:01:26.6]} 11.
Nf3 {[%clk 0:02:31.8]} 11... Qh5 {[%clk 0:01:18.9]} 12. Qb4 {[%clk 0:02:29.7]}
12... Rc8 {[%clk 0:01:15]} 13. Nc3 {[%clk 0:02:17.3]} 13... Rc4 {[%clk
0:00:37.2]} 14. Qa3 {[%clk 0:02:15.8]} 14... Bh3 {[%clk 0:00:15.6]} 15. Kf2
{[%clk 0:01:51.7]} 15... Bf8 {[%clk 0:00:12.6]} 16. Re1+ {[%clk 0:01:42.7]}
16... Be6 {[%clk 0:00:12.4]} 17. Qb3 {[%clk 0:01:19.9]} 17... Bc5+ {[%clk
0:00:12.5]} 18. d4 {[%clk 0:01:10.3]} 18... Rxd4 {[%clk 0:00:12.5]} 19. Nxd4
{[%clk 0:00:32.1]} 19... Bxd4+ {[%clk 0:00:13.4]} 20. Kf1 {[%clk 0:00:32.8]}
20... f3 {[%clk 0:00:05.9]} 21. Be3 {[%clk 0:00:19.1]} 21... Qxh2 {[%clk
0:00:05]} 22. Re2 {[%clk 0:00:05.4]} 22... Qh1+ {[%clk 0:00:03.2]} 23. Kf2
{[%clk 0:00:05.3]} 23... Qxg2+ {[%clk 0:00:03.3]} 24. Ke1 {[%clk 0:00:05.5]}
24... fxe2 {[%clk 0:00:03.9]} 25. Bxd4 {[%clk 0:00:05.2]} 25... Qf1+ {[%clk
0:00:04]} 26. Kd2 {[%clk 0:00:05.9]} 26... Qxa1 {[%clk 0:00:04.4]} 27. Nxe2
{[%clk 0:00:06]} 27... Rg8 {[%clk 0:00:03.1]} 28. Qxb7 {[%clk 0:00:06.7]} 28...
Ke7 {[%clk 0:00:03.3]} 29. Qb4+ {[%clk 0:00:06.8]} 29... Ke8 {[%clk 0:00:03.6]}
30. Qb7 {[%clk 0:00:03.2]} 30... f6 {[%clk 0:00:04.1]} 31. Qxa7 {[%clk
0:00:02.5]} 31... Qh1 {[%clk 0:00:03.7]} 32. Qa6 {[%clk 0:00:02.9]} 32... Qe4
{[%clk 0:00:03.9]} 33. Be3 {[%clk 0:00:02.7]} 33... Rg2 {[%clk 0:00:04.1]} 34.
Qc8+ {[%clk 0:00:01.8]} 34... Kf7 {[%clk 0:00:04.5]} 35. Qh8 {[%clk 0:00:02.2]}
35... Ne5 {[%clk 0:00:04.6]} 36. Qd8 {[%clk 0:00:02.2]} 36... Nc4+ {[%clk
0:00:05]} 0-1

[Event "*** Titled Tuesday Blitz"]
[Site "Chess.com"]
[Date "2020.10.27"]
[Round "4"]
[White "GM_Levan_Pantsulaia"]
[Black "nochewycandy"]
[Result "1-0"]
[WhiteElo "2855"]
[BlackElo "2556"]
[TimeControl "180+1"]
[EndTime "10:38:48 PDT"]
[Termination "GM_Levan_Pantsulaia won on time"]

1. Nf3 {[%clk 0:03:00.9]} 1... g6 {[%clk 0:02:57.9]} 2. g3 {[%clk 0:02:57.2]}
2... Bg7 {[%clk 0:02:58.8]} 3. Bg2 {[%clk 0:02:57.7]} 3... e5 {[%clk 0:02:54.2]}
4. O-O {[%clk 0:02:57.7]} 4... Nc6 {[%clk 0:02:53.9]} 5. c4 {[%clk 0:02:57.8]}
5... Nge7 {[%clk 0:02:53.4]} 6. Nc3 {[%clk 0:02:58.3]} 6... O-O {[%clk
0:02:53.7]} 7. d3 {[%clk 0:02:54.8]} 7... d6 {[%clk 0:02:54]} 8. Rb1 {[%clk
0:02:53.9]} 8... a5 {[%clk 0:02:52.8]} 9. a3 {[%clk 0:02:53.7]} 9... h6 {[%clk
0:02:51.2]} 10. b4 {[%clk 0:02:53.7]} 10... axb4 {[%clk 0:02:51]} 11. axb4
{[%clk 0:02:54.6]} 11... Nd4 {[%clk 0:02:39.5]} 12. Nd2 {[%clk 0:02:29.3]} 12...
c6 {[%clk 0:02:32]} 13. e3 {[%clk 0:02:29.5]} 13... Ne6 {[%clk 0:02:32.1]} 14.
Qb3 {[%clk 0:02:28.6]} 14... Kh7 {[%clk 0:02:24.5]} 15. Ba3 {[%clk 0:02:16.5]}
15... f5 {[%clk 0:02:19.6]} 16. b5 {[%clk 0:02:15.9]} 16... Nc5 {[%clk
0:02:11.2]} 17. Bxc5 {[%clk 0:02:14.3]} 17... dxc5 {[%clk 0:02:11.3]} 18. bxc6
{[%clk 0:02:12.5]} 18... bxc6 {[%clk 0:02:11.1]} 19. Rfd1 {[%clk 0:01:58.9]}
19... Be6 {[%clk 0:02:06.7]} 20. Qc2 {[%clk 0:01:40.8]} 20... Qa5 {[%clk
0:01:59.6]} 21. Nb3 {[%clk 0:01:38.4]} 21... Qa3 {[%clk 0:01:41.4]} 22. Rb2
{[%clk 0:01:18.7]} 22... e4 {[%clk 0:00:59.7]} 23. dxe4 {[%clk 0:00:57.5]} 23...
Bxc4 {[%clk 0:00:58.4]} 24. Rd7 {[%clk 0:00:49.6]} 24... Ra7 {[%clk 0:00:34.4]}
25. Rxa7 {[%clk 0:00:45.6]} 25... Qxa7 {[%clk 0:00:34]} 26. Nd2 {[%clk
0:00:37.6]} 26... Be6 {[%clk 0:00:30.3]} 27. Ra2 {[%clk 0:00:34.5]} 27... Bxa2
{[%clk 0:00:26.3]} 28. Nxa2 {[%clk 0:00:35.2]} 28... Ra8 {[%clk 0:00:20.5]} 29.
Nc1 {[%clk 0:00:34.8]} 29... Qa1 {[%clk 0:00:15.7]} 30. Nb3 {[%clk 0:00:25.3]}
30... Qa3 {[%clk 0:00:15.4]} 31. exf5 {[%clk 0:00:24.6]} 31... Nxf5 {[%clk
0:00:16.3]} 32. Bxc6 {[%clk 0:00:22.8]} 32... Rd8 {[%clk 0:00:13.4]} 33. Be4
{[%clk 0:00:17]} 33... Ne7 {[%clk 0:00:10.1]} 34. h4 {[%clk 0:00:16.6]} 34... h5
{[%clk 0:00:09.8]} 35. Nd3 {[%clk 0:00:16.1]} 35... c4 {[%clk 0:00:04.4]} 36.
Qxc4 {[%clk 0:00:15.3]} 36... Rc8 {[%clk 0:00:04.3]} 37. Qe6 {[%clk 0:00:12]}
1-0